[Event "Tata Steel India Women Rapid 2024"]
[Site "Kolkata"]
[Date "2024.11.14"]
[Round "6.1"]
[White "Dzagnidze, Nana"]
[Black "Koneru, Humpy"]
[Result "1-0"]
[ECO "E00"]
[WhiteElo "2518"]
[BlackElo "2530"]
[Annotator "TA"]
[PlyCount "101"]
[EventDate "2024.11.06"]
[EventType "tourn"]
[EventCountry "IND"]
[SourceTitle "playchess.com"]
[Source "ChessBase"]
[SourceQuality "1"]
[TimeControl "1500+10"]

{[%evp 9,101,14,27,19,28,4,18,0,8,7,43,47,35,51,54,57,39,27,90,82,42,0,0,0,0,0,0,0,0,0,0,-2,-6,-54,-79,-63,0,0,0,-143,-31,-25,-45,-46,96,88,104,95,93,92,144,30,64,33,56,62,56,66,60,69,142,49,96,91,230,213,207,221,241,242,281,281,272,281,410,402,395,395,781,606,858,789,2266,1668,1841,1643,2173,2337,3112,1748,4775,4310,2325,2324]} 1. d4 {[%emt 0:00:04]} Nf6 {[%emt 0:00:04]} 2. c4 {[%emt 0:00:03]} e6 {[%emt 0:00:03]} 3. Bg5 {[%emt 0:00:13]} c5 {[%emt 0:03:59]} 4. d5 {[%emt 0:00:12]} exd5 {[%emt 0:00:29]} 5. cxd5 {[%emt 0:00:03]} d6 {[%emt 0:00:18]} 6. e4 {[%emt 0:00:30]} Be7 {[%emt 0:00:05]} 7. Bd2 {[%emt 0:03:59]} O-O {[%emt 0:00:53]} 8. Nc3 {[%emt 0:00:06] The position is equal.} Re8 {[%emt 0:02:10][%cal Of6e4]} 9. Bd3 {[%emt 0:01:49]} Na6 {[%emt 0:01:02][%cal Oc5c4]} 10. Nge2 {[%emt 0:01:07]} Nc7 {[%emt 0:01:36]} 11. O-O {[%emt 0:00:17]} a6 {[%emt 0:00:42]} 12. Ng3 {[%emt 0:02:33]} Nd7 {[%emt 0:06:38]} 13. f4 {[%emt 0:03:14]} Bf6 {[%emt 0:00:36] Black is weak on the light squares} (13... b5 $11 {keeps the balance.}) 14. e5 {[%emt 0:03:39]} dxe5 {[%emt 0:00:28]} 15. Nge4 {[%emt 0:00:19]} exf4 {[%emt 0:01:29]} 16. Bxf4 {[%emt 0:01:11]} Bd4+ {[%emt 0:01:11]} 17. Kh1 {[%emt 0:00:02]} Ne5 {[%emt 0:00:16] Dodges Qf3} 18. Ng5 {[%emt 0:01:14]} f5 {[%emt 0:04:02]} (18... Nxd5 $2 19. Bxh7+ Kf8 (19... Kh8 $2 20. Nxd5 Bg4 21. Qe1 $18) 20. Nxd5 Qxd5 21. Be4 $18 (21. Bxe5 Rxe5 22. Rxf7+ Qxf7 $18)) 19. Bxe5 {[%emt 0:04:48]} (19. d6 $5 Qxd6 $8 20. Bc4+ Be6 21. Bxe5 Bxe5 (21... Qxe5 $2 22. Qh5 $18) 22. Qxd6 Bxd6 23. Nxe6 Nxe6 24. Rae1 $18 (24. Rxf5 Kh8 $15)) 19... Rxe5 {[%emt 0:00:15]} (19... Bxe5 $2 20. Qh5 h6 21. Rxf5 $18 (21. Nf7 Qe7 $16)) 20. Qh5 {[%emt 0:00:32]} h6 {[%emt 0:00:07]} (20... Nxd5 $2 21. Qxh7+ (21. Nxh7 $2 f4 $19) 21... Kf8 22. Qh8+ (22. Bxf5 Qxg5 23. Bxc8+ Nf6 $18) 22... Ke7 23. Qxg7+ Kd6 24. Nf7+ Kc7 25. Nxd8+ $18) 21. Nf3 {[%emt 0:01:40]} (21. Qf7+ $1 $11 {might be stronger.} Kh8 22. d6 Qxg5 (22... Qxd6 23. Nce4 $16) 23. Qf8+ Kh7 24. dxc7) 21... Re3 $15 {[%emt 0:00:13]} 22. Rad1 {[%emt 0:00:17]} Qf6 {[%emt 0:01:38]} (22... Nxd5 $2 23. Bc4 Be6 24. Nxd4 cxd4 25. Rxd4 $18) ({Black should try} 22... Bxc3 $15 23. bxc3 Nb5 (23... Qxd5 $2 24. Bc4 $18)) 23. Nxd4 $11 {[%emt 0:00:36]} cxd4 {[%emt 0:00:05]} 24. Bxf5 {[%emt 0:00:25]} Qe5 {[%emt 0:00:06]} (24... Bxf5 $17 25. Rxf5 Qe7) 25. d6 $1 $15 {[%emt 0:00:15]} Bxf5 {[%emt 0:00:13]} (25... Qxd6 $2 26. Bc2 (26. Ne4 Qe7 $18) 26... Re7 27. Ne2 $18) 26. dxc7 {[%emt 0:00:06]} g6 {[%emt 0:00:30]} (26... Re8 $1 $15 {stays ahead.}) 27. Qxh6 {[%emt 0:00:07][%cal Oc3d5] Hoping for Nd5!} Rc8 {[%emt 0:00:07][%cal Of5c2] [#]} 28. Nd5 $1 {[%emt 0:00:07][%mdl 512] Chess con chili.} Re4 {[%emt 0:00:23]} (28... Qxd5 $2 29. Qxe3 dxe3 30. Rxd5 $18) 29. Nf4 {[%emt 0:00:14] aiming for g4. White is much more active.} Qg7 {[%emt 0:00:05]} (29... Rxc7 $142 30. Nxg6 Qg7 31. Qxg7+ Kxg7 32. Rxf5 Kxg6) 30. Qxg7+ {[%emt 0:00:12]} ({White should play} 30. Qg5 $16 Qe7 (30... Rxc7 $2 {loses.} 31. g4 $18) 31. Qxe7 (31. Qh6 Qh7 $18) 31... Rxe7 32. Nd5 (32. Rxd4 Rexc7 33. h4 Kg7 $16)) 30... Kxg7 $14 {[%emt 0:00:02]} 31. Rc1 {[%emt 0:00:07]} (31. Nd5 $5) 31... Re7 {[%emt 0:00:23]} 32. Nd5 $36 {[%emt 0:00:08][%mdl 2048] White has some pressure.} Re6 {[%emt 0:00:02]} 33. Kg1 {[%emt 0:00:12]} Be4 {[%emt 0:00:10]} 34. Nf4 {[%emt 0:00:07]} Rf6 {[%emt 0:00:11]} (34... Rd6 $14) 35. g3 {[%emt 0:00:09]} ({Better is} 35. Rce1 $16 Bf5 36. h3) 35... Bc6 {[%emt 0:00:05]} (35... Rd6 $14) 36. Rfd1 $16 {[%emt 0:00:11]} Rd6 {[%emt 0:00:16] [#] This move loses the game for Black.} (36... Kf7 $16 {was necessary.}) 37. Rxd4 $3 $18 {[%emt 0:00:05][%mdl 512]} Rxd4 {[%emt 0:00:07]} 38. Ne6+ {[%emt 0:00:01]} Kf6 {[%emt 0:00:04]} 39. Nxd4 {[%emt 0:00:01][%mdl 4096] Endgame. KRB-KRN} Bd5 {[%emt 0:00:05]} 40. Kf2 {[%emt 0:00:20]} Ke5 {[%emt 0:00:25]} 41. Ke3 {[%emt 0:00:02]} g5 {[%emt 0:00:06]} (41... Bxa2 {was worth a try.} 42. b3 Kf6) 42. h4 {[%emt 0:00:27]} gxh4 {[%emt 0:00:03]} 43. gxh4 {[%emt 0:00:01][%cal Bg3h4,Bh4h5,Bh5h6][%mdl 32] Threatens to win with h5.} Kd6 $2 {[%emt 0:00:10]} (43... Bf7 44. h5 Bxh5 45. Rc5+ Kd6 46. Rxh5 Re8+ 47. Kd3 Kxc7) 44. b3 {[%emt 0:00:23] White is clearly winning.} Bc6 {[%emt 0:00:24]} 45. Nxc6 {[%emt 0:00:06]} bxc6 {[%emt 0:00:05] KR-KR} 46. h5 {[%emt 0:00:08]} Rxc7 {[%emt 0:00:04]} 47. h6 {[%emt 0:00:01]} Ke5 {[%emt 0:00:23]} 48. Rh1 {[%emt 0:00:06] White threatens h7 and mate.} Rh7 {[%emt 0:00:03]} 49. Rh5+ {[%emt 0:00:10]} Kf6 {[%emt 0:00:10]} 50. Kd4 {[%emt 0:00:03]} Kg6 {[%emt 0:00:06]} 51. Rh2 {[%emt 0:00:02] Weighted Error Value: White=0.22 (precise) /Black=0.37.  Mistake:       	White=4     	Black=10     Inaccurate:     	White=2     	Black=3      OK:         	White=15    	Black=16     Best:        	White=4     	Black=1      Strong:       	White=1     	---        Brilliant:      	White=1     	---} 1-0

[Event "Tata Steel India Women Rapid 2024"]
[Site "Kolkata"]
[Date "2024.11.14"]
[Round "6.2"]
[White "Vantika Agrawal"]
[Black "Vaishali, Rameshbabu"]
[Result "1-0"]
[ECO "A40"]
[WhiteElo "2392"]
[BlackElo "2490"]
[Annotator "RC"]
[PlyCount "137"]
[EventDate "2024.11.06"]
[EventType "tourn"]
[EventCountry "IND"]
[SourceTitle "playchess.com"]
[Source "ChessBase"]
[SourceQuality "1"]
[TimeControl "1500+10"]

1. d4 {[%emt 0:00:28]} e6 {[%emt 0:00:02]} 2. c4 {[%emt 0:00:07]} b6 {[%emt 0:00:01]} 3. g3 {[%emt 0:01:39]} Bb7 {[%emt 0:00:04]} 4. Nf3 {[%emt 0:00:01]} Bb4+ {[%emt 0:00:09]} 5. Bd2 {[%emt 0:02:06]} Bxd2+ {[%emt 0:00:13]} 6. Qxd2 {[%emt 0:00:06]} Bxf3 {[%emt 0:00:10]} 7. exf3 {[%emt 0:00:02]} d5 {[%emt 0:00:03]} 8. cxd5 {[%emt 0:02:37]} exd5 {[%emt 0:00:39]} 9. Nc3 {[%emt 0:01:10]} Ne7 {[%emt 0:00:17]} 10. Bb5+ {[%emt 0:00:39]} c6 {[%emt 0:00:10]} 11. Bd3 {[%emt 0:00:23]} O-O {[%emt 0:00:07]} 12. O-O {[%emt 0:00:17]} Nd7 {[%emt 0:25:15]} 13. Rfe1 {[%emt 0:00:33]} Re8 {[%emt 0:00:00]} 14. f4 {[%emt 0:01:01]} Nc8 {[%emt 0:00:00]} 15. Rxe8+ {[%emt 0:00:34]} Qxe8 {[%emt 0:00:00]} 16. Re1 {[%emt 0:00:08]} Qf8 {[%emt 0:00:00]} 17. Qc2 {[%emt 0:03:25]} Nf6 {[%emt 0:00:00]} 18. Qa4 {[%emt 0:03:12]} Qd6 {[%emt 0:00:00]} 19. Nb1 {[%emt 0:05:08]} Ne7 {[%emt 0:00:00]} 20. Nd2 {[%emt 0:00:28]} c5 {[%emt 0:00:00]} 21. b3 {[%emt 0:00:36]} Nc6 {[%emt 0:00:00]} 22. Nf3 {[%emt 0:00:49]} Nb4 {[%emt 0:00:00]} 23. Bb1 {[%emt 0:00:14]} Nc6 {[%emt 0:00:00]} 24. Bd3 {[%emt 0:00:55]} a6 {[%emt 0:00:00]} 25. Qa3 {[%emt 0:00:38]} Nb4 {[%emt 0:00:00]} 26. Ne5 {[%emt 0:00:37]} Rc8 {[%emt 0:00:06]} 27. Bf5 {[%emt 0:00:33]} Rd8 {[%emt 0:00:14]} 28. Qb2 {[%emt 0:00:29]} Ne4 {[%emt 0:01:13]} 29. dxc5 {[%emt 0:00:16]} bxc5 {[%emt 0:00:43]} 30. a3 {[%emt 0:00:43]} Nc6 {[%emt 0:00:10]} 31. Bxe4 {[%emt 0:00:11]} dxe4 {[%emt 0:00:04]} 32. Nxc6 {[%emt 0:00:09]} Qxc6 {[%emt 0:00:50]} 33. Qe5 {[%emt 0:00:13]} Re8 {[%emt 0:00:00]} 34. Qc3 {[%emt 0:00:03]} Qd5 {[%emt 0:00:00]} 35. Qc4 {[%emt 0:00:16]} Qd2 {[%emt 0:00:07]} 36. Rxe4 {[%emt 0:00:11]} Rd8 {[%emt 0:00:18]} 37. Kg2 {[%emt 0:00:11]} Qd6 {[%emt 0:00:03]} 38. Re5 {[%emt 0:00:09]} Rc8 {[%emt 0:00:14]} 39. h4 {[%emt 0:00:10]} h6 {[%emt 0:00:09]} 40. Qe4 {[%emt 0:00:07]} Qf6 {[%emt 0:00:15]} 41. a4 {[%emt 0:00:08]} Rb8 {[%emt 0:00:10]} 42. Rxc5 {[%emt 0:00:07]} g6 {[%emt 0:00:10]} 43. Rc6 {[%emt 0:00:08]} Qb2 {[%emt 0:00:10]} 44. Qd5 {[%emt 0:00:12]} Kg7 {[%emt 0:00:06]} 45. Rc7 {[%emt 0:00:10]} Qf6 {[%emt 0:00:03]} 46. h5 {[%emt 0:00:17]} gxh5 {[%emt 0:00:04]} 47. Rc6 {[%emt 0:00:09]} Qe7 {[%emt 0:00:07]} 48. Rxa6 {[%emt 0:00:09]} h4 {[%emt 0:00:06]} 49. Rc6 {[%emt 0:00:13]} hxg3 {[%emt 0:00:06]} 50. Kxg3 {[%emt 0:00:08]} Rd8 {[%emt 0:00:30]} 51. Qf3 {[%emt 0:00:13]} Kh7 {[%emt 0:00:09]} 52. Qh5 {[%emt 0:00:08]} Rg8+ {[%emt 0:00:19]} 53. Kf3 {[%emt 0:00:09]} Rg6 {[%emt 0:00:11]} 54. Rxg6 {[%emt 0:00:07]} Qb7+ {[%emt 0:00:02]} 55. Rc6 {[%emt 0:00:14]} Qxc6+ {[%emt 0:00:01]} 56. Kg3 {[%emt 0:00:05]} Qe6 {[%emt 0:00:24]} 57. Qf3 {[%emt 0:00:13]} f5 {[%emt 0:00:11]} 58. a5 {[%emt 0:00:08]} Qg6+ {[%emt 0:00:08]} 59. Kh2 {[%emt 0:00:01]} Qd6 {[%emt 0:00:11]} 60. Qb7+ {[%emt 0:00:19]} Kh8 {[%emt 0:00:02]} 61. Qc8+ {[%emt 0:00:16]} Kg7 {[%emt 0:00:02]} 62. Qxf5 {[%emt 0:00:07]} Qd2 {[%emt 0:00:01]} 63. Qe5+ {[%emt 0:00:02]} Kh7 {[%emt 0:00:51]} 64. Kg2 {[%emt 0:00:05]} Qd1 {[%emt 0:00:00]} 65. Qf5+ {[%emt 0:00:05]} Kg7 {[%emt 0:00:00]} 66. Qe5+ {[%emt 0:00:05]} Kh7 {[%emt 0:00:00]} 67. Qe7+ {[%emt 0:00:04]} Kg6 {[%emt 0:00:00]} 68. Qe6+ {[%emt 0:00:05]} Kg7 {[%emt 0:00:00]} 69. a6 {[%emt 0:00:02]} 1-0

[Event "Tata Steel India Women Rapid 2024"]
[Site "Kolkata"]
[Date "2024.11.14"]
[Round "6.3"]
[White "Goryachkina, Aleksandra"]
[Black "Lagno, Kateryna"]
[Result "1-0"]
[ECO "E06"]
[WhiteElo "2528"]
[BlackElo "2527"]
[Annotator "TA"]
[PlyCount "73"]
[EventDate "2024.11.06"]
[EventType "tourn"]
[EventCountry "IND"]
[SourceTitle "playchess.com"]
[Source "ChessBase"]
[SourceQuality "1"]
[TimeControl "1500+10"]

{[%evp 11,73,5,12,0,0,0,0,13,25,17,52,46,79,91,88,93,87,84,91,88,84,85,182,183,263,253,247,231,333,224,223,219,215,214,201,205,195,182,514,570,566,561,604,580,758,754,987,969,1036,652,658,672,728,720,1490,1479,1529,1472,3111,3589,29991,29992,29992,29993]} 1. d4 {[%emt 0:00:03]} d5 {[%emt 0:00:02]} 2. c4 {[%emt 0:00:09]} e6 {[%emt 0:00:03]} 3. Nf3 {[%emt 0:00:06]} Nf6 {[%emt 0:00:03]} 4. g3 {[%emt 0:00:06]} Be7 {[%emt 0:00:04]} 5. Bg2 {[%emt 0:00:05]} O-O {[%emt 0:00:04]} 6. Nc3 {[%emt 0:00:05]} Nbd7 {[%emt 0:00:27]} 7. b3 {[%emt 0:00:50]} dxc4 {[%emt 0:02:02]} 8. bxc4 {[%emt 0:00:04]} c5 {[%emt 0:00:18]} 9. e3 {[%emt 0:01:13] The position is equal.} cxd4 {[%emt 0:01:37]} 10. exd4 {[%emt 0:00:23]} Nb6 {[%emt 0:06:10]} 11. Qb3 {[%emt 0:01:51]} Qc7 {[%emt 0:05:22]} 12. Ne5 {[%emt 0:00:32]} Nfd7 {[%emt 0:01:45]} 13. Nb5 {[%emt 0:03:30]} Qd8 {[%emt 0:00:13]} 14. O-O {[%emt 0:00:26] White is much more active. The black rooks are passive.} a6 {[%emt 0:00:44]} 15. Nxd7 {[%emt 0:00:51]} Bxd7 {[%emt 0:00:08]} 16. Nc3 {[%emt 0:00:06][%cal Oc4c5]} Bf6 {[%emt 0:01:15]} (16... e5 $16) 17. Be3 $18 {[%emt 0:01:01]} (17. Bxb7 Rb8 18. Be4 Bxd4 $17) 17... Rb8 {[%emt 0:02:20]} (17... Rc8 $142) 18. Rab1 {[%emt 0:01:41]} Na8 {[%emt 0:00:23]} 19. Bf4 {[%emt 0:00:34]} (19. Bxb7 Bc8 (19... Bc6 20. Bxc6 Rxb3 21. axb3 $11) 20. Bxa8 Rxb3 21. Rxb3 a5 $11 (21... Bxd4 22. Rd1 $15)) 19... Rc8 {[%emt 0:00:46]} (19... Nc7 {might work better.} 20. Qb6 (20. Bxb7 $2 {perishes.} Bc8 $19) 20... Na8) 20. Rfd1 {[%emt 0:01:33]} b5 {[%emt 0:01:11]} 21. c5 {[%emt 0:00:47]} Bc6 {[%emt 0:00:49]} 22. d5 {[%emt 0:00:30][%cal Bd4d5,Bd5c6,Bc6c7][%mdl 32]} Bxc3 {[%emt 0:00:14]} 23. dxc6 {[%emt 0:00:27]} Qf6 {[%emt 0:00:01]} 24. Rd7 $36 {[%emt 0:02:55][%mdl 2048] Bd6 would now be deadly. White has strong initiative.} b4 $2 {[%emt 0:00:12] Black is weak on the light squares} (24... Be5 25. Bxe5 Qxe5) 25. Bd6 {[%emt 0:00:42]} Rfe8 {[%emt 0:00:11]} 26. Rd1 {[%emt 0:01:03]} Qf5 {[%emt 0:01:13]} 27. Qa4 {[%emt 0:00:41]} a5 {[%emt 0:00:52]} 28. c7 {[%emt 0:00:24]} e5 {[%emt 0:00:35][%cal Be6e5,Be5e4,Be4e3,Be3f2][%mdl 32]} 29. Bd5 {[%emt 0:00:34]} Kh8 {[%emt 0:00:16]} 30. Rxf7 {[%emt 0:02:51]} Qh5 {[%emt 0:00:01]} 31. Rd7 {[%emt 0:00:25][%cal Od5f7] [#] Hoping for Bf7!} Bd4 {[%emt 0:00:09]} 32. Rf1 {[%emt 0:01:25][%cal Od5f7] Black must now prevent Bf7!} e4 {[%emt 0:00:13]} 33. Bf7 {[%emt 0:01:22][%cal Bd5f7,Bf7e8,Be8h5][%mdl 32] A strong pair of Bishops.} Qf3 {[%emt 0:00:12]} 34. Qc6 {[%emt 0:00:13]} Qe2 {[%emt 0:00:30]} 35. Bxe8 {[%emt 0:00:15] Threatening mate with Rd8.} e3 {[%emt 0:00:04] [#]} 36. Bh5 $1 {[%emt 0:00:16]} exf2+ {[%emt 0:00:15]} (36... Qxf1+ 37. Kxf1) 37. Kg2 {[%emt 0:00:02] Black got outplayed after the opening.   Weighted Error Value: White=0.28 (precise) /Black=0.50.  Mistake:       	---       	Black=4      Inaccurate:     	White=1     	Black=4      OK:         	White=14    	Black=8      Best:        	White=2     	Black=2} 1-0

[Event "Tata Steel India Women Rapid 2024"]
[Site "Kolkata"]
[Date "2024.11.14"]
[Round "6.4"]
[White "Dronavalli, Harika"]
[Black "Gunina, Valentina"]
[Result "1/2-1/2"]
[ECO "D11"]
[WhiteElo "2493"]
[BlackElo "2425"]
[Annotator "TA"]
[PlyCount "128"]
[EventDate "2024.11.06"]
[EventType "tourn"]
[EventCountry "IND"]
[SourceTitle "playchess.com"]
[Source "ChessBase"]
[SourceQuality "1"]
[TimeControl "1500+10"]

{[%evp 13,128,16,33,16,14,-11,0,-16,1,-29,-36,-30,0,0,23,12,12,7,12,0,0,0,13,0,9,6,15,6,16,5,10,15,17,6,9,11,11,5,13,0,19,0,0,4,106,6,9,6,5,6,11,14,5,10,21,17,17,0,0,0,0,0,0,0,0,0,0,0,0,0,0,0,0,0,0,0,0,0,0,0,0,0,0,0,0,0,0,0,0,0,0,0,0,0,0,0,0,0,0,0,0,0,0,0,0,0,0,0,0,0,0,0,0,0,0,0,0]} 1. c4 {[%emt 0:00:01]} c6 {[%emt 0:00:06]} 2. Nf3 {[%emt 0:00:02]} d5 {[%emt 0:00:02]} 3. e3 {[%emt 0:00:01]} Bg4 {[%emt 0:00:22]} 4. h3 {[%emt 0:00:28]} Bxf3 5. Qxf3 {[%emt 0:00:01]} Nf6 {[%emt 0:00:07]} 6. Nc3 {[%emt 0:00:26]} e6 {[%emt 0:00:05]} 7. d4 {[%emt 0:00:10]} Nbd7 {[%emt 0:00:02]} 8. Qd1 {[%emt 0:00:58]} Bd6 {[%emt 0:00:10]} 9. Be2 {[%emt 0:02:09]} O-O {[%emt 0:00:05]} 10. O-O {[%emt 0:00:01]} Qe7 {[%emt 0:00:11]} 11. Bd2 {[%emt 0:01:07][%cal Bc1d2,Bd2e1,Be1c3,Bc3e5][%mdl 32]} dxc4 {[%emt 0:00:14]} 12. Bxc4 {[%emt 0:00:01]} c5 {[%emt 0:00:04]} 13. dxc5 {[%emt 0:00:49]} Bxc5 {[%emt 0:00:11]} 14. Qe2 {[%emt 0:00:35]} Rfd8 {[%emt 0:00:15]} 15. Rfd1 {[%emt 0:00:23]} Ne5 {[%emt 0:00:03]} 16. Be1 {[%emt 0:01:24]} Nxc4 {[%emt 0:00:06]} 17. Qxc4 {[%emt 0:00:01]} Rac8 {[%emt 0:01:41][%cal Oc5e3]} 18. Rxd8+ {[%emt 0:00:02]} Rxd8 {[%emt 0:00:01]} 19. Rc1 {[%emt 0:00:15]} Bb4 {[%emt 0:01:49]} 20. a3 {[%emt 0:00:06]} Bxc3 {[%emt 0:00:08]} 21. Bxc3 {[%emt 0:00:02]} Nd5 {[%emt 0:00:03]} 22. Be5 {[%emt 0:02:16]} f6 {[%emt 0:01:25]} 23. Bd4 {[%emt 0:00:26]} b6 {[%emt 0:01:32]} 24. e4 {[%emt 0:02:13]} Nf4 {[%emt 0:00:02][%cal Od8d4]} 25. Be3 {[%emt 0:00:01]} Ng6 {[%emt 0:00:54]} 26. Qc2 {[%emt 0:00:50]} Nf8 {[%emt 0:01:30]} 27. Qc7 {[%emt 0:01:15]} Qxc7 {[%emt 0:00:48]} 28. Rxc7 $11 {[%emt 0:00:02][%mdl 4096] Endgame. KRB-KRN} Rd1+ {[%emt 0:00:02]} 29. Kh2 {[%emt 0:00:01] White is more active.} Rd7 {[%emt 0:00:02] The position is equal.} 30. Rc8 {[%emt 0:00:41]} Kf7 {[%emt 0:00:02]} 31. a4 {[%emt 0:00:04]} e5 {[%emt 0:00:18]} 32. b4 {[%emt 0:02:40]} Ne6 {[%emt 0:00:18]} 33. a5 {[%emt 0:00:01]} Nd4 {[%emt 0:01:20]} 34. axb6 {[%emt 0:11:18]} axb6 {[%emt 0:00:01]} 35. Rb8 {[%emt 0:00:00]} Nc2 {[%emt 0:03:06]} 36. Bxb6 {[%emt 0:00:00]} ({Much weaker is} 36. Rxb6 Nxe3 37. fxe3 Rd3 $15) 36... Nxb4 {[%emt 0:00:03]} 37. Be3 {[%emt 0:00:00]} Nc2 {[%emt 0:00:02]} 38. Rb3 {[%emt 0:00:00]} h5 {[%emt 0:00:37]} 39. Rc3 {[%emt 0:00:00]} Nxe3 {[%emt 0:00:42]} 40. Rxe3 {[%emt 0:00:00] KR-KR} h4 {[%emt 0:00:02]} 41. g3 {[%emt 0:00:00]} hxg3+ {[%emt 0:00:06]} 42. Kxg3 {[%emt 0:00:00]} Kg6 {[%emt 0:00:14]} 43. f4 {[%emt 0:00:00]} Kh5 {[%emt 0:00:52]} 44. fxe5 {[%emt 0:00:00]} fxe5 {[%emt 0:00:01]} 45. Rc3 {[%emt 0:00:00]} Rd4 {[%emt 0:00:47]} 46. Kf3 $1 {[%emt 0:00:00]} Kg5 {[%emt 0:00:37]} 47. Rc5 {[%emt 0:00:00]} Rd3+ {[%emt 0:00:16]} 48. Ke2 {[%emt 0:00:00]} Rxh3 {[%emt 0:00:27] [#] Threatens to win with ...Kf4.} 49. Rxe5+ {[%emt 0:00:00]} Kf4 {[%emt 0:00:01]} 50. Re7 {[%emt 0:00:00]} g5 {[%emt 0:01:04]} 51. Rf7+ {[%emt 0:00:00]} Kxe4 {[%emt 0:00:22]} 52. Kf2 {[%emt 0:00:00]} Ra3 {[%emt 0:00:35]} 53. Kg2 {[%emt 0:00:00]} Rd3 {[%emt 0:00:15]} 54. Rf8 {[%emt 0:00:00]} Rd1 {[%emt 0:00:41]} 55. Rf7 {[%emt 0:00:00]} Ke5 {[%emt 0:00:55]} 56. Rf8 $1 {[%emt 0:00:00]} Ke6 {[%emt 0:00:02]} 57. Kh2 {[%emt 0:00:00]} Ra1 {[%emt 0:01:46]} 58. Kg2 {[%emt 0:00:00]} Ke5 {[%emt 0:00:15]} 59. Rf7 {[%emt 0:00:00]} Ke4 {[%emt 0:00:01]} 60. Rf8 {[%emt 0:00:00]} Ke3 {[%emt 0:00:03]} 61. Rf5 {[%emt 0:00:00]} g4 {[%emt 0:00:07]} 62. Rf8 {[%emt 0:00:00]} Ke4 {[%emt 0:00:42]} 63. Kg3 $1 {[%emt 0:00:00]} Rg1+ {[%emt 0:00:02]} 64. Kh2 {[%emt 0:00:00]} Ra1 {[%emt 0:00:03] Weighted Error Value: White=0.04 (flawless) /Black=0.03 (flawless) .  Inaccurate:     	White=2     	Black=1      OK:         	White=25    	Black=14     Best:        	---       	Black=2      Strong:       	White=3     	---} 1/2-1/2

[Event "Tata Steel India Women Rapid 2024"]
[Site "Kolkata"]
[Date "2024.11.14"]
[Round "6.5"]
[White "Kosteniuk, Alexandra"]
[Black "Divya Deshmukh"]
[Result "0-1"]
[ECO "A07"]
[WhiteElo "2487"]
[BlackElo "2493"]
[Annotator "RC"]
[PlyCount "70"]
[EventDate "2024.11.06"]
[EventType "tourn"]
[EventCountry "IND"]
[SourceTitle "playchess.com"]
[Source "ChessBase"]
[SourceQuality "1"]
[TimeControl "1500+10"]

1. Nf3 {[%emt 0:00:03]} Nf6 {[%emt 0:00:02]} 2. g3 {[%emt 0:00:01]} d5 {[%emt 0:00:32]} 3. Bg2 {[%emt 0:00:02]} e6 {[%emt 0:00:01]} 4. O-O {[%emt 0:00:05]} Be7 {[%emt 0:00:01]} 5. d3 {[%emt 0:00:02]} O-O {[%emt 0:00:03]} 6. Bf4 {[%emt 0:00:04]} h6 {[%emt 0:00:05]} 7. c4 {[%emt 0:01:11]} Nc6 {[%emt 0:00:59]} 8. Nc3 {[%emt 0:00:14]} Nh5 {[%emt 0:00:06]} 9. cxd5 {[%emt 0:00:23]} exd5 {[%emt 0:00:06]} 10. d4 {[%emt 0:00:20]} Be6 {[%emt 0:02:18]} 11. Be3 {[%emt 0:03:32]} f5 {[%emt 0:02:50]} 12. a3 {[%emt 0:05:12]} Bd6 {[%emt 0:00:55]} 13. Nb5 {[%emt 0:00:35]} f4 {[%emt 0:00:45]} 14. Nxd6 {[%emt 0:00:07]} Qxd6 {[%emt 0:00:41]} 15. Bd2 {[%emt 0:00:05]} Rae8 {[%emt 0:00:08]} 16. Bc3 {[%emt 0:02:53]} Nf6 {[%emt 0:01:53]} 17. Ne5 {[%emt 0:00:04]} Ng4 {[%emt 0:00:45]} 18. Nxc6 {[%emt 0:02:20]} Qxc6 {[%emt 0:00:07]} 19. Bb4 {[%emt 0:00:13]} fxg3 {[%emt 0:00:19]} 20. hxg3 {[%emt 0:00:05]} Rf7 {[%emt 0:00:31]} 21. Qd3 {[%emt 0:00:37]} Bf5 {[%emt 0:01:29]} 22. Qb3 {[%emt 0:01:19]} Nf6 {[%emt 0:00:58]} 23. Rac1 {[%emt 0:02:40]} Qd7 {[%emt 0:00:08]} 24. Bd2 {[%emt 0:00:02]} c6 {[%emt 0:00:17]} 25. Rfe1 {[%emt 0:00:54]} Ne4 {[%emt 0:00:23]} 26. Bf4 {[%emt 0:00:03]} g5 {[%emt 0:00:11]} 27. Be3 {[%emt 0:00:34]} Rfe7 {[%emt 0:01:29]} 28. Kh2 {[%emt 0:01:39]} Qd6 {[%emt 0:01:11]} 29. Bxe4 {[%emt 0:01:46]} Bxe4 {[%emt 0:02:22]} 30. Bd2 {[%emt 0:00:45]} Qg6 {[%emt 0:00:42]} 31. Kg1 {[%emt 0:00:33]} g4 {[%emt 0:00:56]} 32. Bf4 {[%emt 0:01:31]} Qh5 {[%emt 0:00:15]} 33. f3 {[%emt 0:00:01]} gxf3 {[%emt 0:00:03]} 34. exf3 {[%emt 0:00:01]} Bxf3 {[%emt 0:00:07]} 35. Be5 {[%emt 0:00:41]} Rf7 {[%emt 0:00:47]} 0-1

[Event "Tata Steel India Women Rapid 2024"]
[Site "Kolkata"]
[Date "2024.11.15"]
[Round "7.1"]
[White "Koneru, Humpy"]
[Black "Goryachkina, Aleksandra"]
[Result "1/2-1/2"]
[ECO "A32"]
[WhiteElo "2530"]
[BlackElo "2528"]
[Annotator "TA"]
[PlyCount "23"]
[EventDate "2024.11.06"]
[EventType "tourn"]
[EventCountry "IND"]
[SourceTitle "playchess.com"]
[Source "ChessBase"]
[SourceQuality "1"]
[TimeControl "1500+10"]

{[%evp 18,23,16,0,0,0,10,0]} 1. d4 {[%emt 0:00:03]} d5 {[%emt 0:00:02]} 2. c4 {[%emt 0:00:04]} e6 {[%emt 0:00:03]} 3. Nf3 {[%emt 0:00:03]} Nf6 {[%emt 0:00:03]} 4. Nc3 {[%emt 0:00:04]} c5 {[%emt 0:00:09]} 5. cxd5 {[%emt 0:00:21]} cxd4 {[%emt 0:00:10]} 6. Nxd4 {[%emt 0:01:09]} Nxd5 {[%emt 0:00:10]} 7. Bd2 {[%emt 0:00:02]} Nf6 {[%emt 0:00:10]} 8. Bf4 {[%emt 0:00:09]} Nd5 {[%emt 0:00:11]} 9. Bd2 {[%emt 0:00:03]} Nf6 {[%emt 0:00:01]} 10. Bf4 {[%emt 0:00:04] The position is equal.} Nd5 {[%emt 0:00:19]} 11. Bd2 {[%emt 0:00:02]} Nf6 {[%emt 0:00:04]} 12. Bf4 {[%emt 0:00:02] A rather calm draw.   Weighted Error Value: White=0.07 (flawless) /Black=0.00 (flawless) .  OK:         	---       	Black=1} 1/2-1/2